fUST/lending_fUST_20250526
["ID","MTS","AMOUNT","RATE_DAILY","PERIOD"]
[362414578,1748265034038,-151.0,0.00021998,7]
[362414579,1748265034048,-247.553649,0.00021998,7]
[362414580,1748265034057,-247.553649,0.00021998,7]
[362414581,1748265034068,-151.0,0.00021999,7]
[362414582,1748265034078,-151.0,0.00021999,7]
[362414583,1748265034088,-151.0,0.00021999,7]
[362414584,1748265034098,-151.0,0.00021999,7]
[362414585,1748265034108,-151.0,0.00021999,7]
[362414586,1748265034118,-151.0,0.00021999,7]
[362414587,1748265034128,-151.0,0.00021999,7]
[362414588,1748265034138,-500.0,0.00021999,2]
[362414589,1748265034149,-5859.14,0.00021999,2]
[362414590,1748265034159,-160.0,0.00021999,2]
[362414591,1748265034169,-30611.87411955,0.00022,2]
[362414592,1748265034179,-151.0,0.00022,7]
[362414593,1748265034189,-151.0,0.00022,7]
[362414594,1748265034201,-151.0,0.00022,7]
[362414595,1748265034212,-151.0,0.00022,7]
[362414596,1748265034223,-151.0,0.00022,7]
[362414597,1748265034233,-151.927387,0.00022,7]
[362414598,1748265034243,-152.673349,0.00022,7]
[362414599,1748265034253,-151.0,0.00022,7]
[362414600,1748265034264,-151.0,0.00022,7]
[362414601,1748265034274,-151.0,0.00022,7]
[362414602,1748265034284,-151.0,0.00022,7]
[362414603,1748265034294,-151.0,0.00022,7]
[362414604,1748265034458,-151.0,0.00022,7]
[362414605,1748265034469,-151.0,0.00022,7]
[362414606,1748265034480,-151.0,0.00022,7]
[362414607,1748265034491,-151.0,0.00022,7]
[362414608,1748265034501,-151.0,0.00022,7]
[362414609,1748265034511,-151.0,0.00022,7]
[362414610,1748265034521,-294.904834,0.00022,7]
[362414611,1748265034531,-151.0,0.00022,7]
[362414612,1748265034540,-151.0,0.00022,7]
[362414613,1748265034550,-151.0,0.00022,7]
[362414614,1748265034559,-151.0,0.00022,7]
[362414615,1748265034569,-151.0,0.00022,7]
[362414616,1748265034580,-151.0,0.00022,7]
[362414617,1748265034590,-151.0,0.00022,7]
[362414618,1748265034600,-151.0,0.00022,7]
[362414619,1748265034610,-151.0,0.00022,7]
[362414620,1748265034620,-151.0,0.00022,7]
[362414621,1748265034630,-304.560722,0.00022,7]
[362414622,1748265034640,-304.560722,0.00022,7]
[362414623,1748265034650,-155.652703,0.00022,7]
[362414624,1748265034659,-155.652703,0.00022,7]
[362414625,1748265034669,-164.517866,0.00022,2]
[362414626,1748265034679,-154.617799,0.00022,7]
[362414627,1748265034688,-289.173017,0.00022,7]
[362414628,1748265034702,-289.173017,0.00022,7]
[362414629,1748265034711,-151.0,0.00022,7]
[362414630,1748265034722,-152.702403,0.00022,7]
[362414631,1748265034732,-151.0,0.00022,7]
[362414632,1748265034743,-151.0,0.00022,7]
[362414633,1748265034756,-239.327451,0.00022,2]
[362414634,1748265034767,-239.327451,0.00022,2]
[362414635,1748265034777,-151.0,0.00022,7]
[362414636,1748265034787,-151.0,0.00022,7]
[362414637,1748265034798,-151.0,0.00022,7]
[362414638,1748265034808,-247.553649,0.00022,7]
[362414639,1748265034819,-247.553649,0.00022,7]
[362414640,1748265034830,-151.0,0.00022,7]
[362414641,1748265034840,-172.0,0.00022,2]
[362414642,1748265034849,-1000.0,0.00022106,2]
[362414643,1748265034859,-1000.0,0.00022106,2]
[362414644,1748265034869,-448.09388923,0.00022107,6]
[362414645,1748265034880,-250.0,0.00022245,2]
[362414646,1748265034890,-151.0,0.0002225,7]
[362414647,1748265034899,-178.371016,0.0002225,7]
[362414648,1748265034909,-199.937283,0.0002225,7]
[362414649,1748265034919,-151.0,0.0002225,7]
[362414650,1748265034928,-151.0,0.0002225,7]
[362414651,1748265034938,-151.0,0.0002225,7]
[362414652,1748265034951,-151.0,0.0002225,7]
[362414653,1748265034961,-448.09388923,0.00022279,6]
[362414654,1748265034971,-151.0,0.00022304,7]
[362414655,1748265034982,-151.0,0.00022304,7]
[362414656,1748265034993,-151.0,0.00022304,7]
[362414657,1748265035003,-151.0,0.00022304,7]
[362414658,1748265035013,-151.0,0.00022304,7]
[362414659,1748265035023,-151.0,0.00022304,7]
[362414660,1748265035033,-180.586245,0.00022304,7]
[362414661,1748265035043,-236.550448,0.00022304,7]
[362414662,1748265035053,-151.0,0.00022304,7]
[362414663,1748265035063,-276.936087,0.00022304,7]
[362414664,1748265035072,-304.560722,0.00022304,7]
[362414665,1748265035082,-304.560722,0.00022304,7]
[362414666,1748265035092,-155.652703,0.00022304,7]
[362414667,1748265035102,-155.652703,0.00022304,7]
[362414668,1748265035112,-289.173017,0.00022304,7]
[362414669,1748265035122,-289.173017,0.00022304,7]
[362414670,1748265035132,-151.0,0.00022304,7]
[362414671,1748265035142,-151.0,0.00022304,7]
[362414672,1748265035152,-151.0,0.00022304,7]
[362414673,1748265035162,-500.0,0.00022335,2]
[362414674,1748265035172,-1660.42,0.00022342,2]
[362414675,1748265035181,-151.0,0.00022342,7]
[362414676,1748265035191,-151.0,0.00022342,7]
[362414677,1748265035202,-239.327451,0.00022342,2]
[362414678,1748265035213,-239.327451,0.00022342,2]
[362414679,1748265035223,-151.0,0.00022342,7]
[362414680,1748265035233,-151.0,0.00022342,7]
[362414681,1748265035243,-247.553649,0.00022342,7]
[362414682,1748265035253,-247.553649,0.00022342,7]
[362414683,1748265035263,-151.0,0.00022352,7]
[362414684,1748265035273,-151.0,0.00022352,7]
[362414685,1748265035283,-151.0,0.00022352,7]
[362414686,1748265035294,-500.0,0.00022405,2]
[362414687,1748265035304,-1002.18897826,0.00022405,2]
[362414688,1748265035315,-328.702135,0.00022429,2]
[362414689,1748265035326,-1140.0397524,0.00022429,2]
[362414690,1748265035335,-158.3064961,0.00022429,2]
[362414691,1748265035345,-154.2915306,0.00022429,2]
[362414692,1748265035356,-158.3064961,0.00022429,2]
[362414693,1748265035366,-176.2486289,0.00022429,2]
[362414694,1748265035376,-153.0,0.00022429,2]
[362414695,1748265035386,-158.3064961,0.00022429,2]
[362414696,1748265035396,-176.2486289,0.00022429,2]
[362414697,1748265035407,-153.0,0.00022429,2]
[362414698,1748265035417,-176.2486289,0.00022429,2]
[362414699,1748265035427,-157.7887541,0.00022429,2]
[362414700,1748265035438,-1000.0,0.00022438,2]
[362414701,1748265035449,-420.0,0.0002245,2]
[362414702,1748265035459,-448.09388923,0.00022452,7]
[362414703,1748265035470,-500.0,0.00022491,2]
[362414704,1748265035480,-1000.0,0.00022507,2]
[362414705,1748265035490,-598.43833138,0.00022518,2]
[362414706,1748265035500,-500.0,0.00022547,2]
[362414707,1748265035511,-243.0,0.00022557,2]
[362414708,1748265035520,-448.09388923,0.00022624,7]
[362414709,1748265035530,-152.31521966,0.00022654,2]
[362414710,1748265035540,-160.0,0.00022684,2]
[362414711,1748265035550,-160.0,0.00022796,2]
[362414712,1748265035560,-448.09388923,0.00022797,7]
[362414713,1748265035570,-508.64,0.000228,2]
[362414714,1748265035580,-151.0,0.00022852,7]
[362414715,1748265035590,-379.75454311,0.00022869,2]
[362414716,1748265035599,-207.4,0.00022886,2]
[362414717,1748265035609,-300.0,0.00022886,2]
[362414718,1748265035619,-300.0,0.00022886,2]
[362414719,1748265035628,-300.0,0.00022886,2]
[362414720,1748265035638,-300.0,0.00022886,2]
[362414721,1748265035647,-300.0,0.00022886,2]
[362414722,1748265035657,-300.0,0.00022886,2]
[362414723,1748265035668,-300.0,0.00022886,2]
[362414724,1748265035678,-314.79732494,0.00022886,2]
[362414725,1748265035687,-1713.66241176,0.000229,2]
[362414726,1748265035698,-151.0,0.000229,7]
[362414727,1748265035708,-304.560722,0.000229,7]
[362414728,1748265035718,-304.560722,0.000229,7]
[362414729,1748265035728,-289.173017,0.000229,7]
[362414730,1748265035738,-289.173017,0.000229,7]
[362414731,1748265035748,-151.0,0.000229,7]
[362414732,1748265035762,-151.0,0.000229,7]
[362414733,1748265035771,-721.77,0.00022949,3]
[362414734,1748265035780,-360.88,0.00022949,3]
[362414735,1748265035790,-180.44,0.00022949,3]
[362414736,1748265035801,-1443.54,0.00022959,3]
[362414737,1748265035812,-239.327451,0.00022959,2]
[362414738,1748265035822,-239.327451,0.00022959,2]
[362414739,1748265035834,-151.0,0.00022959,7]
[362414740,1748265035845,-151.0,0.00022959,7]
[362414741,1748265035857,-247.553649,0.00022959,7]
[362414742,1748265035867,-247.553649,0.00022959,7]
[362414743,1748265035877,-448.09388923,0.00022969,8]
[362414744,1748265035887,-2018.70573506,0.0002299,2]
[362414745,1748265035899,-151.0,0.0002299,7]
[362414746,1748265035910,-151.0,0.0002299,7]
[362414747,1748265035921,-151.0,0.0002299,7]
[362414748,1748265035931,-151.0,0.0002299,7]
[362414749,1748265035940,-151.0,0.0002299,7]
[362414750,1748265035952,-151.0,0.0002299,7]
[362414751,1748265035962,-151.0,0.0002299,7]
[362414752,1748265035972,-151.0,0.0002299,7]
[362414753,1748265035981,-151.0,0.0002299,7]
[362414754,1748265035991,-155.652703,0.0002299,7]
[362414755,1748265036000,-155.652703,0.0002299,7]
[362414756,1748265036010,-151.0,0.0002299,7]
[362414757,1748265036019,-151.0,0.0002299,7]
[362414758,1748265036029,-1000.0,0.00023039,2]
[362414759,1748265036038,-500.0,0.00023055,2]
[362414760,1748265036047,-541.35,0.00023131,3]
[362414761,1748265036057,-154.422925,0.00023141,7]
[362414762,1748265036067,-448.09388923,0.00023141,8]
[362414763,1748265036077,-151.0,0.00023252,7]
[362414764,1748265036086,-254.509792,0.00023252,7]
[362414765,1748265036096,-151.0,0.00023252,7]
[362414766,1748265036105,-151.0,0.00023252,7]
[362414767,1748265036114,-151.0,0.00023252,7]
[362414768,1748265036124,-587.0,0.00023267,2]
[362414769,1748265036134,-448.09388923,0.00023314,9]
[362414770,1748265036143,-379.75454309,0.00023352,2]
[362414771,1748265036153,-500.0,0.00023356,2]
[362414772,1748265036162,-304.560722,0.0002336,7]
[362414773,1748265036172,-304.560722,0.0002336,7]
[362414774,1748265036182,-289.173017,0.0002336,7]
[362414775,1748265036194,-289.173017,0.0002336,7]
[362414776,1748265036205,-160.0,0.00023369,2]
[362414777,1748265036215,-635.566,0.00023395,15]
[362414778,1748265036225,-153.454868,0.000234,7]
[362414779,1748265036235,-151.0,0.000234,7]
[362414780,1748265036244,-151.0,0.000234,7]
[362414781,1748265036255,-151.0,0.000234,7]
[362414782,1748265036265,-151.0,0.000234,7]
[362414783,1748265036275,-151.0,0.000234,7]
[362414784,1748265036287,-500.87299825,0.00023465,3]
[362414785,1748265036297,-448.09388923,0.00023486,9]
[362414786,1748265036308,-151.0,0.0002352,7]
[362414787,1748265036318,-234.073568,0.0002352,7]
[362414788,1748265036328,-151.0,0.0002352,7]
[362414789,1748265036338,-151.0,0.0002352,7]
[362414790,1748265036348,-151.0,0.0002352,7]
[362414791,1748265036358,-155.652703,0.0002357,7]
[362414792,1748265036368,-155.652703,0.0002357,7]
[362414793,1748265036378,-500.0,0.00023587,2]
[362414794,1748265036387,-448.09388923,0.00023659,9]
[362414795,1748265036398,-151.0,0.00023659,7]
[362414796,1748265036408,-151.0,0.00023829,7]
[362414797,1748265036418,-239.327451,0.00023829,2]
[362414798,1748265036428,-239.327451,0.00023829,2]
[362414799,1748265036439,-151.0,0.00023829,7]
[362414800,1748265036452,-151.0,0.00023829,7]
[362414801,1748265036462,-247.553649,0.00023829,7]
[362414802,1748265036472,-247.553649,0.00023829,7]
[362414803,1748265036482,-246.372,0.00023829,2]
[362414804,1748265036492,-235.232,0.00023829,2]
[362414805,1748265036503,-151.658,0.00023829,2]
[362414806,1748265036513,-250.0,0.00023829,2]
[362414807,1748265036523,-150.0,0.00023829,2]
[362414808,1748265036532,-238.354,0.00023829,2]
[362414809,1748265036543,-250.0,0.00023829,2]
[362414810,1748265036553,-257.563,0.00023829,2]
[362414811,1748265036563,-242.0,0.00023829,2]
[362414812,1748265036573,-151.0,0.00023831,7]
[362414813,1748265036584,-151.0,0.00023831,7]
[362414814,1748265036595,-448.09388923,0.00023831,10]
[362414815,1748265036604,-379.75454309,0.00023835,2]
[362414816,1748265036614,-100000.0,0.00024,10]
[362414817,1748265036625,-151.0,0.00024,7]
[362414818,1748265036635,-151.0,0.00024,7]
[362414819,1748265036645,-151.0,0.00024,7]
[362414820,1748265036655,-151.0,0.00024,7]
[362414821,1748265036665,-151.0,0.00024,7]
[362414822,1748265036677,-151.0,0.00024,7]
[362414823,1748265036687,-151.0,0.00024,7]
[362414824,1748265036698,-261.480104,0.00024,7]
[362414825,1748265036707,-151.0,0.00024,7]
[362414826,1748265036717,-151.0,0.00024,7]
[362414827,1748265036728,-151.0,0.00024,7]
[362414828,1748265036738,-151.0,0.00024,7]
[362414829,1748265036749,-151.0,0.00024,7]
[362414830,1748265036763,-151.0,0.00024,7]
[362414831,1748265036773,-151.0,0.00024,7]
[362414832,1748265036783,-151.0,0.00024,7]
[362414833,1748265036793,-151.0,0.00024,7]
[362414834,1748265036804,-151.0,0.00024,7]
[362414835,1748265036815,-151.0,0.00024,7]
[362414836,1748265036828,-151.0,0.00024,7]
[362414837,1748265036839,-151.0,0.00024,7]
[362414838,1748265036850,-151.0,0.00024,7]
[362414839,1748265036860,-151.0,0.00024,7]
[362414840,1748265036870,-151.0,0.00024,7]
[362414841,1748265036880,-229.15402412,0.00024,7]
[362414842,1748265036890,-229.15402412,0.00024,10]
[362414843,1748265036900,-12654.40314616,0.00024,10]
[362414844,1748265036910,-304.560722,0.00024,7]
[362414845,1748265036920,-304.560722,0.00024,7]
[362414846,1748265036930,-304.560722,0.00024,7]
[362414847,1748265036940,-304.560722,0.00024,7]
[362414848,1748265036952,-155.652703,0.00024,7]
[362414849,1748265036963,-155.652703,0.00024,7]
[362414850,1748265036973,-155.652703,0.00024,7]
[362414851,1748265036983,-155.652703,0.00024,7]
[362414852,1748265036993,-289.173017,0.00024,7]
[362414853,1748265037003,-289.173017,0.00024,7]
[362414854,1748265037013,-289.173017,0.00024,7]
[362414855,1748265037024,-289.173017,0.00024,7]
[362414856,1748265037034,-151.0,0.00024,7]
[362414857,1748265037044,-151.0,0.00024,7]
[362414858,1748265037054,-157.791356,0.00024,7]
[362414859,1748265037064,-239.327451,0.00024,2]
[362414860,1748265037074,-239.327451,0.00024,2]
[362414861,1748265037083,-239.327451,0.00024,2]
[362414862,1748265037094,-239.327451,0.00024,2]
[362414863,1748265037105,-151.0,0.00024,7]
[362414864,1748265037115,-151.0,0.00024,7]
[362414865,1748265037125,-151.0,0.00024,7]
[362414866,1748265037135,-151.0,0.00024,7]
[362414867,1748265037145,-151.0,0.00024,7]
[362414868,1748265037154,-281.252347,0.00024,7]
[362414869,1748265037165,-247.553649,0.00024,7]
[362414870,1748265037175,-247.553649,0.00024,7]
[362414871,1748265037186,-247.553649,0.00024,7]
[362414872,1748265037199,-247.553649,0.00024,7]
[362414873,1748265037209,-151.0,0.00024,7]
[362414874,1748265037219,-293.178687,0.00024,7]
[362414875,1748265037230,-448.09388923,0.00024003,10]
[362414876,1748265037240,-363.0540327,0.00024055,2]
[362414877,1748265037251,-448.09388923,0.00024176,10]
[362414878,1748265037261,-2490.63,0.00024204,2]
[362414879,1748265037272,-215.0738,0.00024255,2]
[362414880,1748265037282,-379.75454309,0.00024317,2]
[362414881,1748265037291,-1443.54,0.00024319,3]
[362414882,1748265037434,-721.76,0.00024319,3]
[362414883,1748265037448,-360.88,0.00024319,3]
[362414884,1748265037458,-2887.08,0.00024329,3]
[362414885,1748265037469,-1000.0,0.0002433,2]
[362414886,1748265037479,-448.09388923,0.00024348,11]
[362414887,1748265037488,-54530.27330948,0.000245,14]
[362414939,1748265040932,-181.23584675,0.00020999,2]
[362414940,1748265040942,-500.0,0.00020999,2]
[362414941,1748265040956,-500.0,0.00020999,2]
[362414942,1748265040965,-500.0,0.00020999,2]
[362414943,1748265040974,-500.0,0.00020999,2]
[362414944,1748265040984,-90.97589764,0.00020999,2]
[362414945,1748265040997,-409.02410236,0.00020999,2]
[362414946,1748265041006,-500.0,0.00020999,2]
[362414947,1748265041015,-71.02332161,0.00020999,2]
[362415439,1748266043094,-300.74618151,0.00019151,2]
[362415444,1748266190652,160.395973,0.00013699,2]
[362415475,1748266231891,-300.0,0.00017999,2]
[362415476,1748266231904,-300.0,0.00017999,2]
[362415477,1748266231914,-300.0,0.00017999,2]
[362415478,1748266231924,-1200.0,0.00017999,2]
[362415479,1748266231934,-27836.8820349,0.00018,2]
[362415489,1748266237675,-300.0,0.00017998,2]
[362415490,1748266237685,-395.24,0.00017999,2]
[362415491,1748266237731,-104.76,0.00017999,2]
[362415492,1748266237742,-500.0,0.00017999,2]
[362415493,1748266237751,-500.0,0.00017999,2]
[362415494,1748266237761,-500.0,0.00017999,2]
[362415495,1748266237772,-336.35184565,0.00017999,2]
[362415496,1748266237784,-163.64815435,0.00017999,2]
[362415497,1748266237794,-500.0,0.00017999,2]
[362415498,1748266237805,-500.0,0.00017999,2]
[362415499,1748266237815,-500.0,0.00017999,2]
[362415500,1748266237824,-600.93194932,0.00017999,2]
[362415502,1748266237836,-194.31691311,0.00017999,2]
[362415504,1748266237848,-500.0,0.00017999,2]
[362415506,1748266237858,-500.0,0.00017999,2]
[362415508,1748266237867,-500.0,0.00017999,2]
[362415510,1748266237878,-240.29585629,0.00017999,2]
[362415513,1748266237887,-500.0,0.00017999,2]
[362415514,1748266237897,-500.0,0.00017999,2]
[362415517,1748266237907,-500.0,0.00017999,2]
[362415518,1748266237917,-500.0,0.00017999,2]
[362415521,1748266237927,-500.0,0.00017999,2]
[362415523,1748266237936,-500.0,0.00017999,2]
[362415525,1748266237947,-191.56128119,0.00017999,2]
[362415526,1748266237959,-308.43871881,0.00017999,2]
[362415527,1748266237970,-500.0,0.00017999,2]
[362415528,1748266237980,-500.0,0.00017999,2]
[362415529,1748266237990,-500.0,0.00017999,2]
[362415530,1748266238000,-500.0,0.00017999,2]
[362415531,1748266238010,-500.0,0.00017999,2]
[362415532,1748266238020,-476.69969338,0.00017999,2]
[362415533,1748266238029,-500.0,0.00017999,2]
[362415534,1748266238039,-500.0,0.00017999,2]
[362415535,1748266238049,-181.13330431,0.00017999,2]
[362415559,1748266245945,-318.86669569,0.00017999,2]
[362415560,1748266245955,-500.0,0.00017999,2]
[362415561,1748266245966,-181.31291271,0.00017999,2]
[362415569,1748267215866,160.395973,0.00013699,2]
[362415570,1748267235148,-335.71824245,0.0001781,2]
[362415571,1748267359150,-1086.0819134,0.00017751,2]
[362415572,1748267359177,-2.16460215,0.0001781,2]
[362415573,1748267359206,-300.0,0.00017999,2]
[362415574,1748267359233,-2135.0,0.00018,14]
[362415575,1748267359260,-2000.0,0.00018,14]
[362415576,1748267359288,-1235.36852144,0.00018,2]
[362415577,1748267359316,-1000.0,0.00018,2]
[362415613,1748267432069,-478.4815536,0.00018331,2]
[362415615,1748267432079,-300.0,0.00018404,2]
[362415617,1748267432088,-8043.26916,0.00018405,2]
[362415619,1748267432099,-300.0,0.00018453,2]
[362415621,1748267432108,-1836.04732455,0.00018454,2]
[362415724,1748267437833,-621.134384,0.00018151,2]
[362415725,1748267437844,-814.65550596,0.00018454,2]
[362415726,1748267437856,-4524.40719526,0.00018454,2]
[362415727,1748267437887,-2824.88997423,0.00018454,2]
[362415728,1748267437898,-300.0,0.00018636,2]
[362415729,1748267437908,-500.0,0.00018637,2]
[362415730,1748267437918,-210.55416305,0.00018637,2]
[362415731,1748267437928,-500.0,0.00018637,2]
[362415732,1748267437939,-500.0,0.00018637,2]
[362415733,1748267437948,-500.0,0.00018637,2]
[362415734,1748267437958,-290.0,0.00018637,2]
[362415735,1748267437970,-259.28287897,0.00018637,2]
[362415736,1748267437979,-500.0,0.00018637,2]
[362415737,1748267437990,-500.0,0.00018637,2]
[362415738,1748267437999,-500.0,0.00018637,2]
[362415739,1748267438010,-500.0,0.00018637,2]
[362415740,1748267438019,-500.0,0.00018637,2]
[362415741,1748267438029,-500.0,0.00018637,2]
[362415742,1748267438039,-500.0,0.00018637,2]
[362415743,1748267438049,-500.0,0.00018637,2]
[362415744,1748267438059,-500.0,0.00018637,2]
[362415745,1748267438068,-500.0,0.00018637,2]
[362415746,1748267438077,-500.0,0.00018637,2]
[362415747,1748267438086,-242.28971184,0.00018637,2]
[362415748,1748267438096,-5463.41432056,0.00018638,2]
[362415749,1748267438105,-1086.0819134,0.00018639,7]
[362415750,1748267438115,-1086.0819134,0.00018639,7]
[362415751,1748267438125,-1086.0819134,0.00018639,7]
[362415752,1748267438134,-1086.0819134,0.00018683,2]
[362415753,1748267438144,-1086.0819134,0.00018683,2]
[362415754,1748267438154,-1086.0819134,0.00018683,2]
[362415755,1748267438167,-563.80726156,0.000189,2]
[362415756,1748267438178,-214.67951015,0.000189,2]
[362415757,1748267438189,-1000.0,0.00019,2]
[362415758,1748267438199,-214.67950991,0.00019141,2]
[362415759,1748267438210,-11.59234821,0.00019177,4]
[362415760,1748267438224,-534.82641653,0.00019177,4]
[362415761,1748267438235,-1000.0,0.00019178,2]
[362415762,1748267438245,-214.67950991,0.00019383,2]
[362415763,1748267438254,-500.0,0.0001952,2]
[362415764,1748267438265,-500.0,0.0001952,2]
[362415765,1748267438274,-500.0,0.0001952,2]
[362415766,1748267438284,-607.84814698,0.0001952,2]
[362415767,1748267438293,-500.0,0.0001952,2]
[362415768,1748267438303,-500.0,0.0001952,2]
[362415769,1748267438313,-227.49062794,0.0001952,2]
[362415770,1748267438323,-500.0,0.0001952,2]
[362415771,1748267438333,-500.0,0.0001952,2]
[362415772,1748267438342,-215.36459859,0.0001952,2]
[362415773,1748267438352,-500.0,0.0001952,2]
[362415774,1748267438363,-500.0,0.0001952,2]
[362415775,1748267438373,-500.0,0.0001952,2]
[362415776,1748267438383,-500.0,0.0001952,2]
[362415777,1748267438394,-500.0,0.0001952,2]
[362415778,1748267438404,-1818.19069985,0.0001952,3]
[362415779,1748267438422,-567.87898395,0.0001952,3]
[362415780,1748267438432,-949.2010159,0.00019521,2]
[362416046,1748267443141,-865.20744749,0.00019521,2]
[362416056,1748267446016,-13563.04939013,0.00019521,2]
[362416061,1748268221416,160.395973,0.00013699,2]
[362416062,1748268337129,-4767.7930915,0.00018089,2]
[362416063,1748268337150,-2398.5839337,0.0001822,2]
[362416064,1748268337172,-500.0,0.00018396,7]
[362416065,1748268337193,-500.0,0.00018396,7]
[362416066,1748268337214,-500.0,0.00018396,7]
[362416067,1748268337234,-500.0,0.00018396,7]
[362416068,1748268337255,-500.0,0.00018396,7]
[362416069,1748268337278,-500.0,0.00018396,7]
[362416070,1748268337298,-500.0,0.00018396,7]
[362416071,1748268337318,-500.0,0.00018396,7]
[362416072,1748268337338,-500.0,0.00018396,2]
[362416073,1748268337363,-500.0,0.00018396,2]
[362416074,1748268337384,-500.0,0.00018396,2]
[362416075,1748268337404,-500.0,0.00018396,2]
[362416076,1748268337424,-500.0,0.00018396,2]
[362416077,1748268337445,-500.0,0.00018396,2]
[362416078,1748268337466,-500.0,0.00018396,2]
[362416079,1748268337486,-150.9620454,0.00018495,2]
[362416080,1748268337507,-300.0,0.00018593,2]
[362416081,1748268337530,-300.0,0.00018593,2]
[362416082,1748268337551,-1200.0,0.00018593,2]
[362416083,1748268337571,-300.0,0.00018593,2]
[362416084,1748268337594,-500.0,0.00018594,2]
[362416085,1748268337617,-500.0,0.00018594,2]
[362416086,1748268337638,-500.0,0.00018594,2]
[362416087,1748268337658,-500.0,0.00018594,2]
[362416088,1748268337678,-500.0,0.00018594,2]
[362416089,1748268337698,-500.0,0.00018594,2]
[362416090,1748268337720,-500.0,0.00018594,2]
[362416091,1748268337743,-500.0,0.00018594,2]
[362416092,1748268337764,-500.0,0.00018594,2]
[362416093,1748268337785,-500.0,0.00018594,2]
[362416094,1748268337807,-500.0,0.00018594,2]
[362416095,1748268337828,-380.0,0.00018594,2]
[362416096,1748268337850,-500.0,0.00018594,2]
[362416097,1748268337872,-500.0,0.00018594,2]
[362416098,1748268337895,-500.0,0.00018594,2]
[362416099,1748268337917,-500.0,0.00018594,2]
[362416100,1748268337938,-178.32839605,0.00018594,2]
[362416101,1748268337960,-377.60920835,0.00018594,2]
[362416102,1748268337981,-500.0,0.00018594,2]
[362416103,1748268338006,-500.0,0.00018594,2]
[362416104,1748268338031,-500.0,0.00018594,2]
[362416105,1748268338055,-500.0,0.00018594,2]
[362416106,1748268338080,-500.0,0.00018594,2]
[362416107,1748268338106,-500.0,0.00018594,2]
[362416108,1748268338127,-500.0,0.00018594,2]
[362416109,1748268338148,-242.29060808,0.00018594,2]
[362416110,1748268338172,-500.0,0.00018594,2]
[362416111,1748268338195,-500.0,0.00018594,2]
[362416112,1748268338216,-500.0,0.00018594,2]
[362416113,1748268338239,-500.0,0.00018594,2]
[362416114,1748268338272,-500.0,0.00018594,2]
[362416115,1748268338295,-500.0,0.00018594,2]
[362416116,1748268338318,-500.0,0.00018594,2]
[362416117,1748268338340,-558.90954091,0.00018594,2]
[362416118,1748268338361,-500.0,0.00018594,2]
[362416119,1748268338383,-500.0,0.00018594,2]
[362416120,1748268338405,-500.0,0.00018594,2]
[362416121,1748268338435,-500.0,0.00018594,2]
[362416122,1748268338458,-500.0,0.00018594,2]
[362416123,1748268338481,-500.0,0.00018594,2]
[362416124,1748268338504,-500.0,0.00018594,2]